[Event "GER-chT Youth Countries 2018"]
[Site "Wurzburg"]
[Date "2018.10.07"]
[Round "7"]
[White "Engel, Robert"]
[Black "Oberhofer, Cedric"]
[Result "1/2-1/2"]
[ECO "B30"]
[WhiteElo "2059"]
[BlackElo "2213"]
[Annotator "NA"]
[PlyCount "97"]
[EventDate "2018.10.03"]
[EventType "team-tourn"]
[EventCountry "GER"]
[SourceTitle "playchess.com"]
[Source "ChessBase"]
[SourceQuality "1"]
[TimeControl "40/5400+30:1800+30"]

{[%evp 23,97,41,33,5,13,0,45,-9,-10,-62,-17,-18,10,-22,-12,-19,45,32767,46,-29,20,-25,72,30,40,-15,32767,32767,-31,32767,32767,-152,-134,-156,0,32767,32767,32767,0,0,19,32767,32767,32767,32767,95,135,35,139,32767,99,32767,32767,32767,32767,0,32767,0,67,59,72,0,66,0,0,32767,32767,32767,32767,0,0,0,32767,0,0,0]} 1. e4 {[%emt 0:00:00]} c5 {[%emt 0:00:00]} 2. Nf3 {[%emt 0:00:00]} Nc6 {[%emt 0:00:00]} 3. Bb5 {[%emt 0:00:00]} d6 {[%emt 0:00:00]} 4. O-O {[%emt 0:00:00]} Bd7 {[%emt 0:00:11]} 5. Re1 {[%emt 0:00:00]} Nf6 {[%emt 0:02:25]} 6. c3 {[%emt 0:01:50]} a6 {[%emt 0:00:39]} 7. Ba4 {[%emt 0:02:16]} b5 {[%emt 0:07:16]} 8. Bc2 {[%emt 0:00:10]} Bg4 {[%emt 0:08:31]} 9. h3 {[%emt 0:01:25]} Bxf3 {[%emt 0:00:39]} 10. Qxf3 {[%emt 0:03:03]} g6 {[%emt 0:00:08] B51: Sicilian: Moscow Variation (3 Bb5+) without 3...Bd7} 11. d3 {[%emt 0:04:05]} (11. a4 Rb8 12. axb5 axb5 13. Qd1 Bh6 14. Na3 O-O 15. Bd3 c4 16. Bf1 Na5 17. d3 Bxc1 18. Rxc1 cxd3 19. Qxd3 {½-½ (25) Andriasian,Z (2612)-Moiseenko,A (2695) Jerusalem 2015}) 11... Bg7 {[%emt 0:01:15]} 12. Be3 {[%emt 0:05:06]} Nd7 {[%emt 0:01:23]} 13. Qg3 $146 {[%emt 0:02:58]} ({Predecessor:} 13. Nd2 O-O 14. a3 a5 15. Rac1 a4 16. Bb1 b4 17. Qd1 b3 18. f4 {½-½ (36) Tyulenko,Y (2452)-Petersons,I (2318) ICCF email 2013}) 13... O-O {[%emt 0:01:20]} 14. f4 {[%emt 0:01:20]} Rb8 {[%emt 0:04:28]} 15. h4 {[%emt 0:04:44]} Nf6 {[%emt 0:11:52]} 16. f5 {[%emt 0:08:54]} Ne5 {[%emt 0:05:46]} 17. Nd2 {[%emt 0:06:50]} Kh8 {[%emt 0:06:35]} 18. Nf3 {[%emt 0:02:33]} Nxf3+ {[%emt 0:09:06]} 19. Qxf3 {[%emt 0:00:16]} Rc8 {[%emt 0:03:30]} 20. g4 {[%emt 0:02:44]} Nd7 {[%emt 0:02:28]} 21. h5 {[%emt 0:02:49]} ({White should try} 21. Rab1 $14) 21... e6 {[%emt 0:03:48]} ({Better is} 21... gxf5 $15 22. exf5 (22. Qxf5 e6 $17) (22. gxf5 b4 $17) 22... Bf6) 22. Re2 {[%emt 0:03:58]} g5 {[%emt 0:04:19]} (22... exf5 $11 23. gxf5 Ne5) 23. h6 {[%emt 0:06:24]} Bf6 {[%emt 0:00:22]} 24. Rh2 {[%emt 0:06:57]} ({Better is} 24. Rd1 $14) 24... Ne5 {[%emt 0:05:49]} 25. Qe2 {[%emt 0:00:48]} d5 {[%emt 0:01:13]} 26. d4 {[%emt 0:03:45]} cxd4 {[%emt 0:02:22]} 27. cxd4 $2 {[#]} (27. Bxd4 $11 exf5 28. exf5) 27... Rxc2 $1 {[%emt 0:00:39]} 28. Qxc2 {[%emt 0:03:07]} Nf3+ {[%emt 0:00:02]} (28... Nxg4 $17 29. e5 Nxe3) 29. Kg2 {[%emt 0:01:12]} Nxh2 {[%emt 0:00:07]} 30. Kxh2 {[%emt 0:00:18]} dxe4 {[%emt 0:03:03]} 31. Qxe4 {[%emt 0:01:08]} Re8 {[%emt 0:00:45]} 32. Bf2 {[%emt 0:04:34]} Qd6+ {[%emt 0:03:24]} 33. Kg2 {[%emt 0:01:24]} Rd8 {[%emt 0:04:49] [#]} 34. Rc1 $1 {[%emt 0:02:12]} exf5 {[%emt 0:02:09]} 35. Qxf5 {[%emt 0:00:19]} ({White must play} 35. gxf5 $16 Qf8 36. Rc6) 35... Kg8 {[%emt 0:01:28]} (35... Bxd4 $14 36. Bxd4+ Qxd4) 36. b3 {[%emt 0:06:37]} Qe6 {[%emt 0:01:39]} 37. Qf3 {[%emt 0:03:59]} Be7 {[%emt 0:01:29]} 38. Rc6 {[%emt 0:00:05]} Rd6 {[%emt 0:00:43]} 39. Rxd6 {[%emt 0:02:44]} (39. d5 $5 Qd7 40. Rxd6 Qxd6 41. Qf5 $14) 39... Bxd6 {[%emt 0:01:09]} 40. Bg3 $1 {[%emt 0:03:37]} Kf8 {[%emt 0:02:12]} (40... Bb4 $11) 41. Qa8+ {[%emt 0:07:33]} Ke7 {[%emt 0:00:08]} 42. Bxd6+ {[%emt 0:01:57]} (42. Qb7+ Kf8 43. Bxd6+ Qxd6 44. Qc8+ Ke7 45. Qc5) 42... Qxd6 {[%emt 0:04:13]} 43. Qe4+ {[%emt 0:00:01]} Kf8 {[%emt 0:00:05]} 44. Qa8+ {[%emt 0:01:52]} Ke7 {[%emt 0:00:04]} 45. Qe4+ {[%emt 0:00:11]} Kf8 {[%emt 0:00:03]} 46. d5 {[%emt 0:07:02]} Qxh6 {[%emt 0:02:39]} 47. Qe5 {[%emt 0:01:09]} Qg6 {[%emt 0:00:20]} 48. d6 {[%emt 0:01:13]} Qc2+ {[%emt 0:00:06]} 49. Kg1 $11 {[%emt 0:00:37]} 1/2-1/2

[Event "GER-chT Youth Countries 2018"]
[Site "Wurzburg"]
[Date "2018.10.07"]
[Round "7"]
[White "Musiolik, David"]
[Black "Astner, Sebastian"]
[Result "1-0"]
[ECO "B15"]
[WhiteElo "2057"]
[BlackElo "1849"]
[Annotator "NA"]
[PlyCount "105"]
[EventDate "2018.10.03"]
[EventType "team-tourn"]
[EventCountry "GER"]
[SourceTitle "playchess.com"]
[Source "ChessBase"]
[SourceQuality "1"]
[TimeControl "40/5400+30:1800+30"]

{[%evp 17,105,-5,-8,-9,0,-7,0,0,0,-2,23,0,0,-7,0,0,4,5,0,0,32767,0,30,41,32767,60,104,32767,32767,32767,-7,-17,32767,32767,32767,32767,32767,32767,0,32767,32767,32767,32767,0,0,32767,32767,32767,32767,33,32767,32767,32767,32767,32767,32767,32767,32767,32767,32767,32767,32767,32767,317,32767,497,408,530,425,568,495,539,32767,571,539,891,841,1418,898,32767,32767,32767,32767,6609,32767,32767,12836,29979,29980,29979]} 1. e4 {[%emt 0:00:00]} c6 {[%emt 0:00:00]} 2. d4 {[%emt 0:00:00]} d5 {[%emt 0:00:00]} 3. Nc3 {[%emt 0:00:03]} dxe4 {[%emt 0:00:00]} 4. Nxe4 {[%emt 0:00:07]} Nf6 {[%emt 0:00:00]} 5. Nxf6+ {[%emt 0:14:41]} exf6 {[%emt 0:00:00]} 6. Bf4 {[%emt 0:06:10]} Bd6 {[%emt 0:01:01] B15: Caro-Kann (Flohr-Variante)} (6... Be7 7. Nf3 O-O 8. Bc4 Nd7 9. c3 Nb6 10. Bd3 Nd5 11. Bg3 Re8 12. Qc2 Bf8+ 13. Kf1 h6 14. Re1 {½-½ (30) Prinzjakowitsch,B (2138)-Pitl,G (2393) Austria 2018}) 7. Bxd6 {[%emt 0:07:31]} Qxd6 {[%emt 0:00:10]} 8. Qd2 {[%emt 0:00:35]} Be6 {[%emt 0:02:23]} 9. Nf3 {[%emt 0:01:51]} Nd7 {[%emt 0:02:42]} 10. c4 $146 {[%emt 0:06:09]} ({Vorgänger:} 10. Be2 O-O 11. O-O Nb6 12. Rfe1 Rfd8 13. c3 c5 14. Qc2 {1-0 (64) Gomes,J (1996)-Arruda Filho,I (1826) Joao Pessoa 2017}) 10... Qe7 {[%emt 0:09:55]} 11. Qe3 {[%emt 0:05:19]} Qb4+ {[%emt 0:02:24]} 12. Qd2 {[%emt 0:00:53]} Qe7 {[%emt 0:00:10]} 13. O-O-O {[%emt 0:07:22]} Nb6 {[%emt 0:03:38]} 14. Qc3 {[%emt 0:01:29]} O-O {[%emt 0:02:27]} 15. Kb1 {[%emt 0:01:55]} Rfd8 {[%emt 0:05:18]} 16. h3 {[%emt 0:02:18]} Bf5+ {[%emt 0:08:02]} 17. Bd3 {[%emt 0:02:45]} Bxd3+ {[%emt 0:00:09]} 18. Qxd3 {[%emt 0:00:23]} Qb4 {[%emt 0:02:09]} 19. Rc1 {[%emt 0:02:05]} Rd7 {[%emt 0:03:49]} 20. a3 {[%emt 0:02:31]} Qa4 {[%emt 0:05:11]} 21. Rhe1 {[%emt 0:03:28]} Rad8 {[%emt 0:06:08]} 22. Qf5 {[%emt 0:03:23]} g6 {[%emt 0:10:24]} 23. Qc2 {[%emt 0:01:53]} Qxc2+ {[%emt 0:03:41]} 24. Rxc2 {[%emt 0:00:04]} Kf8 {[%emt 0:01:04]} 25. b3 {[%emt 0:01:27]} Na8 {[%emt 0:01:27]} 26. Rd2 {[%emt 0:02:10]} Nc7 {[%emt 0:00:58]} 27. Red1 {[%emt 0:02:42]} Ne6 {[%emt 0:08:19]} 28. g3 {[%emt 0:01:58]} h5 {[%emt 0:03:56]} 29. Kb2 {[%emt 0:16:35]} Ng5 {[%emt 0:04:47]} 30. Nxg5 {[%emt 0:01:09]} fxg5 {[%emt 0:00:02]} 31. Kc3 {[%emt 0:02:23]} f5 {[%emt 0:01:05]} 32. Re1 {[%emt 0:00:57]} Kf7 {[%emt 0:01:02]} 33. h4 {[%emt 0:01:47]} gxh4 {[%emt 0:01:07]} 34. gxh4 {[%emt 0:00:01]} Re7 {[%emt 0:00:14]} 35. Rxe7+ {[%emt 0:00:49]} Kxe7 {[%emt 0:00:02]} 36. Re2+ {[%emt 0:00:18]} Kf6 {[%emt 0:00:18]} 37. f4 {[%emt 0:00:12]} Rd7 {[%emt 0:01:31]} 38. Re5 {[%emt 0:00:44]} b6 {[%emt 0:01:12]} 39. b4 {[%emt 0:01:18]} a6 {[%emt 0:01:51]} 40. a4 {[%emt 0:01:01]} Rc7 {[%emt 0:04:10]} 41. b5 {[%emt 0:09:17]} axb5 {[%emt 0:07:45]} 42. axb5 {[%emt 0:00:14]} c5 {[%emt 0:00:04]} 43. dxc5 {[%emt 0:06:08]} bxc5 {[%emt 0:00:07]} 44. Re8 {[%emt 0:01:36]} Kf7 {[%emt 0:14:40]} 45. Ra8 {[%emt 0:01:22]} Ke6 {[%emt 0:02:13]} 46. Ra6+ {[%emt 0:00:44]} Kf7 {[%emt 0:00:30]} 47. b6 {[%emt 0:00:44]} Rc8 {[%emt 0:00:31]} 48. b7 {[%emt 0:00:52]} Rb8 {[%emt 0:00:03]} 49. Rb6 {[%emt 0:00:04]} Kg7 {[%emt 0:00:56]} 50. Kb3 {[%emt 0:03:06]} g5 {[%emt 0:01:28]} 51. fxg5 {[%emt 0:00:12]} f4 {[%emt 0:01:03]} 52. Kc3 {[%emt 0:00:10]} f3 {[%emt 0:01:00]} 53. Kd2 {[%emt 0:00:27]} 1-0

[Event "GER-chT Youth Countries 2018"]
[Site "Wurzburg"]
[Date "2018.10.07"]
[Round "7"]
[White "Joeres, Stefan"]
[Black "Walter, Kevin"]
[Result "1-0"]
[ECO "B90"]
[WhiteElo "2043"]
[BlackElo "2190"]
[Annotator "NA"]
[PlyCount "143"]
[EventDate "2018.10.03"]
[EventType "team-tourn"]
[EventCountry "GER"]
[SourceTitle "playchess.com"]
[Source "ChessBase"]
[SourceQuality "1"]
[TimeControl "40/5400+30:1800+30"]

{[%evp 10,141,17,2,32767,32767,32767,-13,8,-30,32767,0,-1,-6,0,-7,6,-15,-25,32767,-12,-28,-5,-18,-28,-35,-39,-87,-74,32767,32767,-106,-103,-102,-94,32767,-67,32767,32767,-52,32767,-93,-70,32767,32767,32767,32767,-81,32767,-150,-141,-270,32767,-145,-99,32767,-86,-206,32767,32767,-79,-96,-15,32767,32767,32767,32767,32767,32767,-68,32767,-21,-33,-43,0,-42,32767,-110,-35,32767,-41,-36,32767,32767,-80,-48,32767,32767,-70,-85,32767,32767,-11,-26,-10,-2,0,32767,32767,24,28,28,229,32767,32767,480,219,516,4622,12843,29971,12847,32767,32767,29974,29974,29975,12848,32767,32767,32767,32767,32767,32767,32767,32767,29981,29982,32767,32767,29984,29984,29984,29984]} 1. e4 {[%emt 0:00:00]} c5 {[%emt 0:00:01]} 2. Nf3 {[%emt 0:00:00]} d6 {[%emt 0:00:58]} 3. d4 {[%emt 0:00:00]} cxd4 {[%emt 0:00:08]} 4. Nxd4 {[%emt 0:00:00]} Nf6 {[%emt 0:01:01]} 5. Nc3 {[%emt 0:00:00]} a6 {[%emt 0:00:38]} 6. a3 {[%emt 0:01:05]} e6 {[%emt 0:01:13] B90: Sicilian Najdorf: Unusual White 6th moves, 6 Be3 Ng4 and 6 Be3 e5} (6... e5 7. Nf3 Be7 8. Bc4 O-O 9. Bg5 Be6 10. Bxf6 Bxc4 11. Bxe7 Qxe7 12. Nd2 Be6 13. Nf1 Nd7 14. Ne3 Nf6 15. O-O Rac8 16. Qd3 Rc6 17. Rfd1 Rfc8 18. f3 g6 19. Kh1 Kg7 20. Qd2 {½-½ (20) Anand,V (2782)-Nepomniachtchi,I (2729) Riadh 2017}) 7. Be3 {[%emt 0:01:52]} Nbd7 {[%emt 0:02:30]} 8. Nb3 {[%emt 0:03:12]} ({Günstiger ist} 8. g4 $14) 8... Be7 {[%emt 0:04:39]} 9. Be2 {[%emt 0:02:22]} Qc7 {[%emt 0:01:35]} 10. f4 {[%emt 0:04:42]} b5 {[%emt 0:05:20]} 11. Bf3 {[%emt 0:04:23]} Bb7 {[%emt 0:01:27]} 12. O-O {[%emt 0:00:29]} O-O {[%emt 0:02:08]} 13. Qe1 {[%emt 0:02:37]} Rac8 $146 {[%emt 0:06:23]} ({Predecessor:} 13... Nb6 14. Nd2 {0-1 (73) Saif,M (1956)-Badghisi,J Ashkhabad 2017}) 14. Qf2 {[%emt 0:04:52]} e5 {[%emt 0:07:33]} 15. f5 {[%emt 0:16:38]} Nc5 {[%emt 0:00:58]} 16. Nxc5 {[%emt 0:00:39]} dxc5 {[%emt 0:00:08]} 17. Rad1 {[%emt 0:07:46]} Rfd8 {[%emt 0:01:31]} 18. Bg5 {[%emt 0:07:30]} b4 {[%emt 0:28:58]} 19. Bxf6 {[%emt 0:01:28]} Bxf6 {[%emt 0:00:40]} 20. Nb1 {[%emt 0:00:47]} a5 {[%emt 0:04:06]} 21. Qe2 {[%emt 0:04:16]} c4 {[%emt 0:06:26]} 22. c3 {[%emt 0:03:20]} bxa3 {[%emt 0:02:47]} 23. Nxa3 {[%emt 0:01:21]} Ba6 {[%emt 0:03:57]} 24. Rd5 {[%emt 0:03:50]} Rb8 {[%emt 0:01:55]} 25. g3 {[%emt 0:01:43]} Be7 {[%emt 0:01:27]} 26. Kh1 {[%emt 0:03:44]} Rxd5 {[%emt 0:09:14]} 27. exd5 {[%emt 0:00:18]} Rb3 {[%emt 0:00:49]} 28. Nb1 {[%emt 0:00:56]} Bd6 {[%emt 0:01:18]} 29. f6 {[%emt 0:03:21] [#]} (29. Rc1 $15) 29... g6 $1 {[%emt 0:00:23]} ({Weaker is} 29... gxf6 30. Be4 $14) 30. Be4 {[%emt 0:02:06]} (30. Rc1 $17) 30... Qc5 {[%emt 0:01:10]} 31. Qd2 {[%emt 0:00:45]} Bb7 {[%emt 0:00:44]} (31... Qc8 $19 32. Na3 Qb8) 32. Rf2 {[%emt 0:02:44]} Bf8 {[%emt 0:01:45]} 33. Re2 {[%emt 0:01:03]} (33. Kg2 $17) 33... Bc8 {[%emt 0:01:57]} 34. Kg2 {[%emt 0:00:38]} Bg4 {[%emt 0:00:27]} 35. Rf2 {[%emt 0:00:27]} Qb6 {[%emt 0:00:37]} ({Black should play} 35... Qc8 $17 36. h4 Bc5) 36. Na3 {[%emt 0:01:38]} Qc5 {[%emt 0:00:26]} 37. h3 {[%emt 0:00:19]} Bc8 {[%emt 0:00:14]} 38. Qe2 {[%emt 0:00:21]} Ba6 {[%emt 0:00:27]} 39. h4 {[%emt 0:01:40]} Bh6 {[%emt 0:00:49]} 40. h5 {[%emt 0:00:51]} Be3 {[%emt 0:00:37]} 41. Rf1 {[%emt 0:35:07]} Bh6 {[%emt 0:03:18]} 42. hxg6 {[%emt 0:00:00]} hxg6 {[%emt 0:00:56]} 43. Rh1 {[%emt 0:00:00]} (43. Kh1 $11 {remains equal.}) 43... Qe3 {[%emt 0:01:48]} (43... Bg5 $17 44. Rf1 Rb6 45. Bxg6 Qxd5+ 46. Be4 {[#]} Rxb2 $1 {[%mdl 512]} 47. Bxd5 Rxe2+ 48. Rf2 Rxf2+ 49. Kxf2 e4) 44. Qxe3 {[%emt 0:00:00]} Bxe3 {[%emt 0:00:11]} 45. Rb1 {[%emt 0:00:00]} Bg5 {[%emt 0:00:40]} 46. Bf3 {[%emt 0:00:00]} Bxf6 {[%emt 0:06:37]} 47. Be2 {[%emt 0:00:00]} e4 {[%emt 0:01:51]} 48. Bxc4 {[%emt 0:00:00]} Bxc4 {[%emt 0:06:09]} 49. Nxc4 {[%emt 0:00:00]} Bxc3 {[%emt 0:01:09]} 50. d6 {[%emt 0:00:00]} Bf6 {[%emt 0:01:47]} (50... f5 $15 51. Rd1 Bf6) 51. Nxa5 {[%emt 0:00:00]} Rd3 {[%emt 0:02:25]} 52. Nc4 {[%emt 0:00:00]} Bg7 {[%emt 0:02:28]} 53. Ra1 {[%emt 0:00:00]} Bf8 {[%emt 0:02:17]} 54. Ra6 {[%emt 0:00:00]} f5 {[%emt 0:03:44]} 55. b4 {[%emt 0:00:00]} g5 $2 {[%emt 0:01:12]} (55... Rd5 $11 {and Black has nothing to worry.}) 56. b5 {[%emt 0:00:00]} f4 {[%emt 0:00:10]} 57. gxf4 {[%emt 0:00:00]} gxf4 {[%emt 0:00:02]} 58. b6 {[%emt 0:00:00]} Bxd6 {[%emt 0:01:08]} (58... Rg3+ $142 59. Kf1 Rf3+ 60. Ke1 Rb3) 59. Nxd6 {[%emt 0:00:00]} Rxd6 {[%emt 0:01:41] [#]} 60. b7 $1 {[%emt 0:00:00]} Rd2+ {[%emt 0:00:30]} 61. Kf1 {[%emt 0:00:00]} Rd1+ {[%emt 0:00:30]} 62. Ke2 {[%emt 0:00:00]} Rb1 {[%emt 0:00:21]} 63. Ra8+ {[%emt 0:00:00]} Kf7 {[%emt 0:00:07]} 64. b8=Q {[%emt 0:00:00]} Rxb8 {[%emt 0:00:41]} 65. Rxb8 {[%emt 0:00:00]} Ke6 {[%emt 0:00:07]} 66. Rb5 {[%emt 0:00:00]} Kf6 {[%emt 0:00:06]} 67. Kd2 {[%emt 0:00:00]} Ke6 {[%emt 0:00:31]} 68. Kc3 {[%emt 0:00:00]} f3 {[%emt 0:01:25]} 69. Kd4 {[%emt 0:00:00]} f2 {[%emt 0:00:20]} 70. Rb1 {[%emt 0:00:00]} Kf5 {[%emt 0:00:08]} 71. Ke3 {[%emt 0:00:02]} Kg4 {[%emt 0:00:14]} 72. Kxf2 {[%emt 0:00:03]} 1-0

[Event "GER-chT Youth Countries 2018"]
[Site "Wurzburg"]
[Date "2018.10.07"]
[Round "7"]
[White "Hund, Sarah"]
[Black "Lesny, Florian"]
[Result "1-0"]
[ECO "B23"]
[WhiteElo "2023"]
[BlackElo "2073"]
[Annotator "NA"]
[PlyCount "65"]
[EventDate "2018.10.03"]
[EventType "team-tourn"]
[EventCountry "GER"]
[SourceTitle "playchess.com"]
[Source "ChessBase"]
[SourceQuality "1"]
[TimeControl "40/5400+30:1800+30"]

{[%evp 10,65,17,32767,32767,8,11,22,32767,32767,32767,32767,32767,32767,33,9,43,36,45,35,66,62,111,89,163,32767,141,133,250,218,203,178,232,197,206,217,243,231,32767,108,254,32767,122,32767,50,8,32767,271,32767,291,32767,32767,441,32767,518,32767,32767,576]} 1. e4 {[%emt 0:00:00]} c5 {[%emt 0:00:00]} 2. Nc3 {[%emt 0:00:00]} a6 {[%emt 0:00:00]} 3. g3 {[%emt 0:00:18]} b5 {[%emt 0:00:04]} 4. Bg2 {[%emt 0:00:09]} Bb7 {[%emt 0:00:11]} 5. d3 {[%emt 0:00:19]} e6 {[%emt 0:00:18]} 6. Nh3 {[%emt 0:02:15]} Be7 {[%emt 0:04:03] B23: Closed Sicilian: Lines without g3} (6... b4 7. Ne2 d5 8. e5 Nc6 9. f4 Nh6 10. Nf2 Nf5 11. O-O Qb6 12. c3 Be7 13. g4 Nh4 14. Bh1 {0-1 (35) Yu,Y (2738)-Khismatullin,D (2639) Moscow 2017}) 7. O-O {[%emt 0:01:39] LiveBook: 3 Games} Nc6 {[%emt 0:04:31]} 8. f4 {[%emt 0:03:12]} b4 $146 {[%emt 0:03:42]} ({Predecessor:} 8... Nd4 9. Ne2 Qb6 10. c3 Nxe2+ 11. Qxe2 Nf6 12. f5 e5 13. Kh1 Qc6 14. Re1 {0-1 (45) Arjun,V (2325)-Suvrajit,S (2405) Biel 2007}) 9. Nb1 {[%emt 0:01:42]} d5 {[%emt 0:01:34]} 10. Nd2 {[%emt 0:01:41]} Nf6 {[%emt 0:01:19]} 11. e5 {[%emt 0:07:06]} Ng8 {[%emt 0:02:40]} 12. f5 {[%emt 0:06:38]} exf5 {[%emt 0:01:21]} 13. Nf3 {[%emt 0:04:19]} Qd7 {[%emt 0:02:52]} 14. a3 {[%emt 0:05:47]} bxa3 {[%emt 0:03:24]} 15. bxa3 {[%emt 0:01:09]} h5 {[%emt 0:11:09]} (15... Nd8 $14) 16. Nhg5 {[%emt 0:05:26]} Nh6 {[%emt 0:02:49]} (16... Bxg5 $16 {keeps fighting.} 17. Bxg5 Nd8) 17. Qe2 {[%emt 0:01:35]} Nd8 {[%emt 0:02:08]} 18. Nh4 {[%emt 0:03:16]} g6 {[%emt 0:02:37] [#]} (18... c4 $16) 19. e6 $1 {[%emt 0:10:20]} Nxe6 {[%emt 0:02:23]} 20. Nxe6 {[%emt 0:00:28]} Qxe6 {[%emt 0:00:50]} 21. Qxe6 {[%emt 0:01:42]} fxe6 {[%emt 0:00:58]} 22. Nxg6 {[%emt 0:00:14]} Rh7 {[%emt 0:00:52]} (22... Bf6 $142) 23. Re1 {[%emt 0:00:32]} Kd7 {[%emt 0:05:34]} 24. Nf4 $2 {[%emt 0:02:25]} (24. Rb1 $18 Ra7 25. Nxe7 Kxe7 26. Rb6) 24... Ng4 {[%emt 0:08:09]} (24... Bd6 $16 {might work better.}) 25. Nxe6 {[%emt 0:06:37]} h4 {[%emt 0:02:40]} 26. c4 {[%emt 0:05:55]} hxg3 {[%emt 0:02:08]} 27. hxg3 {[%emt 0:00:27]} Nf6 {[%emt 0:02:17]} 28. Rb1 {[%emt 0:08:10]} Bc6 {[%emt 0:00:34]} 29. Rb6 {[%emt 0:00:53]} Bd6 {[%emt 0:01:54]} 30. Bf4 {[%emt 0:01:32]} Bxf4 {[%emt 0:02:05]} 31. Nxf4 {[%emt 0:00:50]} Kc7 {[%emt 0:01:32]} 32. Rxc6+ {[%emt 0:02:33]} Kxc6 {[%emt 0:00:15]} 33. Nxd5 $18 {[%emt 0:00:20] Kxd5} 1-0

[Event "GER-chT Youth Countries 2018"]
[Site "Wurzburg"]
[Date "2018.10.07"]
[Round "7"]
[White "Leser, Katrin"]
[Black "Doll, Rebecca"]
[Result "1-0"]
[ECO "C75"]
[WhiteElo "2018"]
[BlackElo "1722"]
[Annotator "NA"]
[PlyCount "113"]
[EventDate "2018.10.03"]
[EventType "team-tourn"]
[EventCountry "GER"]
[SourceTitle "playchess.com"]
[Source "ChessBase"]
[SourceQuality "1"]
[TimeControl "40/5400+30:1800+30"]

{[%evp 22,101,61,32767,64,40,32767,18,72,61,56,48,46,56,66,83,121,80,97,75,98,32767,124,32767,32767,32767,32767,32767,-84,32767,-90,-97,0,32767,-18,-46,-31,-41,-20,-20,41,-146,32767,-152,-162,-224,32767,-279,-3,32767,32767,-153,32767,32767,32767,32767,32767,32767,65,35,46,53,64,29,32767,68,94,97,218,270,32767,32767,194,222,406,425,32767,182,889,32767,861,929]} 1. e4 {[%emt 0:00:00]} e5 {[%emt 0:00:00]} 2. Nf3 {[%emt 0:00:00]} Nc6 {[%emt 0:00:00]} 3. Bb5 {[%emt 0:00:00]} a6 {[%emt 0:00:00]} 4. Ba4 {[%emt 0:00:00]} d6 {[%emt 0:00:00]} 5. c3 {[%emt 0:00:00]} Bd7 {[%emt 0:00:20]} 6. d4 {[%emt 0:00:18]} Nge7 {[%emt 0:00:32]} 7. O-O {[%emt 0:01:42]} Ng6 {[%emt 0:00:34]} 8. d5 {[%emt 0:01:46]} Nb8 {[%emt 0:00:22]} 9. Bxd7+ {[%emt 0:00:18]} Nxd7 {[%emt 0:00:20]} 10. c4 {[%emt 0:00:31] C75: Ruy Lopez: Deferred Steinitz: 5 c3 Bd7 6 d4 without ...g6} a5 {[%emt 0:00:44]} 11. Nc3 {[%emt 0:01:42]} Be7 {[%emt 0:01:28]} 12. Be3 {[%emt 0:09:32]} h6 {[%emt 0:03:27]} 13. Qd2 {[%emt 0:05:20]} O-O {[%emt 0:05:32]} 14. a3 $146 {[%emt 0:01:36]} ({Predecessor:} 14. b3 f5 15. exf5 Rxf5 16. Qc2 Qf8 17. Nd2 Nf4 {0-1 (37) Fomichenko,E (2445)-Karabakhtsian,A (2302) Anapa 2007}) 14... f5 {[%emt 0:06:24]} (14... Nh4 $11 {remains equal.}) 15. exf5 {[%emt 0:02:46]} Rxf5 {[%emt 0:01:03]} 16. Qc2 {[%emt 0:02:40]} Qf8 {[%emt 0:01:29]} 17. Nd2 {[%emt 0:04:06]} Qf7 {[%emt 0:06:23]} 18. Nde4 {[%emt 0:07:21]} Rf8 {[%emt 0:09:23]} 19. Ng3 {[%emt 0:04:04]} Rf4 {[%emt 0:11:25]} 20. Nb5 {[%emt 0:09:35]} ({Much worse is} 20. Bxf4 $6 exf4 21. Nge4 f3 $11) 20... Bd8 {[%emt 0:04:54]} 21. b4 {[%emt 0:07:51]} a4 {[%emt 0:10:14]} 22. Bxf4 {[%emt 0:20:46]} exf4 {[%emt 0:00:54]} 23. Nd4 {[%emt 0:01:52]} fxg3 {[%emt 0:10:27]} 24. fxg3 {[%emt 0:00:10]} Bf6 {[%emt 0:00:53]} 25. Ne6 {[%emt 0:02:22]} Re8 {[%emt 0:02:54]} 26. Qxa4 {[%emt 0:02:07]} ({Avoid the trap} 26. Nxc7 $2 Bd4+ 27. Kh1 Bxa1 $19) 26... Qe7 {[%emt 0:05:11]} (26... Ndf8 $17 27. c5 Nxe6 28. dxe6 Qxe6) 27. Rad1 {[%emt 0:03:32]} Nb6 {[%emt 0:01:08]} 28. Qb3 {[%emt 0:03:45]} Ne5 {[%emt 0:03:49]} 29. Rc1 {[%emt 0:01:43]} c6 {[%emt 0:03:52]} 30. Nf4 {[%emt 0:02:11]} Ng4 {[%emt 0:01:16]} (30... cxd5 $15 31. cxd5 Qf7) 31. Qf3 $2 {[%emt 0:02:04]} (31. dxc6 $14 {stays ahead.} bxc6 32. c5+ Nd5 33. Nxd5 cxd5 34. Qxd5+ Kh8 35. Qf3 (35. Qxd6 {gets mated.} Qe3+ 36. Kh1 Nf2+ 37. Kg1 Nh3+ 38. Kh1 Qg1+ 39. Rxg1 Nf2#)) 31... Qd7 {[%emt 0:04:03]} 32. h3 {[%emt 0:02:25]} (32. dxc6 $15 bxc6 33. c5) 32... Ne3 {[%emt 0:02:25]} 33. dxc6 {[%emt 0:00:33]} bxc6 {[%emt 0:00:47]} 34. Rfe1 {[%emt 0:00:53]} Nexc4 $2 {[%emt 0:01:52]} (34... Nbxc4 $19 35. Re2 d5) 35. Qh5 {[%emt 0:00:50]} Bd4+ {[%emt 0:00:54]} 36. Kh2 {[%emt 0:00:22]} Re7 {[%emt 0:00:48]} 37. Ng6 {[%emt 0:00:25]} Rf7 {[%emt 0:00:38]} 38. Re4 {[%emt 0:00:28]} c5 {[%emt 0:00:49]} 39. Rce1 {[%emt 0:00:37]} Ne5 $1 {[%emt 0:00:44]} 40. bxc5 {[%emt 0:00:16]} Bxc5 {[%emt 0:01:21]} 41. Nxe5 {[%emt 0:13:46]} dxe5 {[%emt 0:01:55]} 42. Qxe5 {[%emt 0:00:44]} Rf5 {[%emt 0:13:17]} 43. Qb8+ {[%emt 0:02:00]} Rf8 {[%emt 0:00:32]} 44. Re8 {[%emt 0:00:42]} Nc8 {[%emt 0:03:40] [#]} (44... Rxe8 $16 {was necessary.} 45. Rxe8+ Kh7) 45. Rxf8+ $1 {[%emt 0:03:50]} Bxf8 {[%emt 0:01:17]} 46. Rc1 {[%emt 0:00:48]} Ne7 {[%emt 0:01:43]} 47. Rf1 {[%emt 0:02:54]} Qc8 $2 {[%emt 0:04:28]} (47... Ng6 48. Qb1 Ne7) 48. Qb3+ {[%emt 0:00:22]} Kh7 {[%emt 0:00:40]} 49. a4 {[%emt 0:00:49]} (49. Qf7 $142 Ng6 50. Rf6) 49... Nc6 $2 {[%emt 0:03:07]} (49... Nf5 $16 50. a5 Bd6) 50. Qc2+ {[%emt 0:01:50]} Kg8 $18 {[%emt 0:03:04]} 51. Rc1 {[%emt 0:00:11]} Qa6 {[%emt 0:01:06]} 52. Qxc6 {[%emt 0:00:10]} Qa5 {[%emt 0:00:08]} 53. Rd1 {[%emt 0:01:03]} Qb4 {[%emt 0:00:45]} 54. Qb5 {[%emt 0:00:45]} Qc3 {[%emt 0:00:32]} 55. a5 {[%emt 0:00:40]} Qc2 {[%emt 0:00:55]} 56. Qd5+ {[%emt 0:00:17]} Kh7 {[%emt 0:00:23]} 57. Qd3+ {[%emt 0:00:12]} 1-0